bitfinex/quotes_BTCUSD_20260215
["timestamp","ask_amount","ask_price","bid_price","bid_amount"]
[1771190925092,0.14545152,68773.0,68760.0,0.49757284]
[1771190925293,0.0004,68774.0,68761.0,0.13715276]
[1771190927277,0.0004,68774.0,68763.0,0.13715276]
[1771190928571,0.16469107,68778.0,68764.0,0.50846761]
[1771190928572,0.0005795,68778.0,68764.0,0.50846761]
[1771190928707,0.0005795,68778.0,68765.0,0.13715276]
[1771190929741,0.00070804,68778.0,68769.0,0.13715276]
[1771190929958,0.0001795,68788.0,68770.0,0.13715276]
[1771190930109,0.16411157,68787.0,68770.0,0.1372813]
[1771190930317,0.16411157,68785.0,68770.0,0.1372813]
[1771190931642,0.0004,68774.0,68770.0,0.1372813]
[1771190931879,0.0004,68781.0,68771.0,0.13715276]
[1771190932335,0.0001795,68788.0,68771.0,0.13715276]
[1771190932503,0.0005795,68788.0,68771.0,0.13715276]
[1771190938834,0.0005795,68788.0,68771.0,0.13735276]
[1771190941802,0.0005795,68788.0,68776.0,0.50846761]
[1771190942028,0.0005795,68788.0,68777.0,0.13715276]
[1771190944146,0.0005795,68788.0,68771.0,0.0002]
[1771190944147,0.0004,68793.0,68779.0,0.13715276]
[1771190944475,0.0004,68793.0,68778.0,0.50846761]
[1771190944476,0.0004,68793.0,68781.0,0.13715276]
[1771190944817,0.16451157,68793.0,68781.0,0.13715276]
[1771190946533,0.0004,68793.0,68781.0,0.13715276]
[1771190947370,0.0004,68788.0,68781.0,0.13715276]
[1771190949504,0.0004,68793.0,68781.0,0.13715276]
[1771190949739,0.16429107,68798.0,68780.0,0.34844]
[1771190949740,0.0001795,68798.0,68783.0,0.50846761]
[1771190949941,0.0001795,68798.0,68789.0,0.13715276]
[1771190950270,0.0001795,68798.0,68791.0,0.13715276]
[1771190952665,0.0001795,68798.0,68771.0,0.1478]
[1771190952851,0.16411157,68789.0,68773.0,0.13715276]
[1771190954281,0.16411157,68789.0,68779.0,0.50846761]
[1771190954451,0.16411157,68789.0,68780.0,0.34844]
[1771190954667,0.0005795,68798.0,68780.0,0.34844]
[1771190954873,0.0005795,68798.0,68789.0,0.12212345]
[1771190955056,0.0005795,68798.0,68791.0,0.12212345]
[1771190955404,0.0005795,68798.0,68791.0,0.12207962]
[1771190956188,0.0005795,68798.0,68791.0,0.12193363]
[1771190957517,0.0004,68799.0,68791.0,0.12193363]
[1771190963077,0.0005651,68800.0,68791.0,0.12193363]
[1771190963078,0.0005651,68800.0,68791.0,0.12212345]
[1771190964981,0.0004,68805.0,68791.0,0.12212345]
[1771190966245,0.01115401,68804.0,68796.0,0.12212345]
[1771190966462,0.01115401,68804.0,68798.0,0.12212345]
[1771190967514,0.01158286,68804.0,68798.0,0.12212345]
[1771190967863,0.17032935,68804.0,68797.0,0.34844]
[1771190971236,0.01158286,68804.0,68797.0,0.34844]
[1771190971778,0.01158286,68804.0,68798.0,0.12212345]
[1771190972375,0.0004,68805.0,68798.0,0.12212345]
[1771190972578,0.00051839,68805.0,68798.0,0.12212345]
[1771190974404,0.0001828,68810.0,68798.0,0.12212345]
[1771190974655,0.0001828,68810.0,68801.0,0.12212345]
[1771190975594,0.0004,68805.0,68801.0,0.12212345]
[1771190979345,0.0004,68813.0,68801.0,0.12212345]
[1771190980222,0.0004,68813.0,68801.0,0.12244545]
[1771190981636,0.15892929,68821.0,68804.0,0.12212345]
[1771190981840,0.15892929,68821.0,68806.0,0.12212345]
[1771190982040,0.15892929,68821.0,68809.0,0.5076273]
[1771190983905,0.0004,68813.0,68809.0,0.5076273]
[1771190984044,0.15892929,68821.0,68806.0,0.11960413]
[1771190984244,0.0004,68820.0,68809.0,0.5076273]
[1771190985546,0.0004,68820.0,68810.0,0.12764233]
[1771190988234,0.0004,68827.0,68809.0,0.5076273]
[1771190988447,0.0004,68827.0,68818.0,0.12764233]
[1771190988640,0.0004,68827.0,68819.0,0.34832]
[1771190989220,0.0004,68827.0,68819.0,0.47596233]
[1771190989832,0.00052856,68827.0,68819.0,0.47596233]
[1771190990254,0.00052856,68827.0,68819.0,0.34832]
[1771190990532,0.00052856,68827.0,68820.0,0.34832]
[1771190990533,0.12170736,68825.0,68820.0,0.34832]
[1771190990737,0.13476659,68824.0,68814.0,0.34832]
[1771190993207,0.13196659,68824.0,68814.0,0.34832]
[1771190997701,0.13196659,68824.0,68814.0,0.34852]
[1771190997822,0.13236659,68824.0,68814.0,0.34852]
[1771190999239,0.0004,68834.0,68815.0,0.12764233]
[1771190999497,0.12189016,68851.0,68815.0,0.12764233]
[1771190999498,0.0001202,68848.0,68834.0,0.0004]
[1771190999648,0.13336659,68858.0,68840.0,0.12764233]
[1771191000116,0.13336659,68858.0,68835.0,0.44136]
[1771191000310,0.13336659,68858.0,68841.0,0.12764233]
[1771191000513,0.5076273,68851.0,68842.0,0.34828]
[1771191000716,0.13336659,68850.0,68842.0,0.34824]
[1771191000915,0.13336659,68850.0,68827.0,0.12764233]
[1771191001134,0.00012853,68851.0,68809.0,0.000203]
[1771191001135,0.13336659,68839.0,68821.0,0.12764233]
[1771191001368,0.13336659,68839.0,68820.0,0.000203]
[1771191001369,0.13336659,68830.0,68820.0,0.000203]
[1771191001557,0.13336659,68843.0,68821.0,0.12764233]
[1771191001956,0.13336659,68843.0,68831.0,0.12764233]
[1771191003546,0.13336659,68840.0,68828.0,0.34828]
[1771191003758,0.13349515,68840.0,68829.0,0.12764233]
[1771191005785,0.13389515,68840.0,68829.0,0.12764233]
[1771191007037,0.64152245,68840.0,68828.0,0.34828]
[1771191007239,0.13336659,68839.0,68828.0,0.34828]
[1771191007416,0.13336659,68839.0,68830.0,0.5076273]
[1771191007617,0.13336659,68839.0,68829.0,0.12764233]
[1771191008256,0.05370194,68839.0,68829.0,0.63526963]
[1771191008660,0.05370194,68839.0,68830.0,0.12764233]
[1771191009847,0.00052856,68840.0,68830.0,0.12764233]
[1771191010046,0.0004,68847.0,68837.0,0.5076273]
[1771191010277,0.0004,68847.0,68829.0,0.000321]
[1771191010278,0.0004,68847.0,68838.0,0.12764233]
[1771191010477,0.0004,68847.0,68838.0,0.12777089]
[1771191013421,0.09353427,68858.0,68839.0,0.11952455]
[1771191013628,0.09353427,68849.0,68838.0,0.34832856]
[1771191014227,0.09353427,68846.0,68838.0,0.34832856]
[1771191015070,0.0004,68847.0,68839.0,0.11952455]
[1771191018979,0.0004,68847.0,68839.0,0.11937854]
[1771191019591,0.0004,68847.0,68839.0,0.10492074]
[1771191020924,0.0004,68854.0,68838.0,0.34832856]
[1771191020925,0.0004,68854.0,68840.0,0.5076273]
[1771191021131,0.0004,68854.0,68841.0,0.11952455]
[1771191021743,0.0004,68847.0,68841.0,0.11952455]
[1771191022973,0.0004,68854.0,68841.0,0.11952455]
[1771191023294,0.0004,68854.0,68840.0,0.5076273]
[1771191023295,0.0004,68854.0,68845.0,0.11952455]
[1771191023554,0.0004,68854.0,68845.0,0.34816]
[1771191023766,0.0004,68854.0,68846.0,0.11952455]
[1771191024453,0.0004,68854.0,68845.0,0.34816]
[1771191024677,0.0004,68854.0,68846.0,0.11952455]
[1771191026150,0.000203,68859.0,68846.0,0.11952455]
[1771191026389,0.000203,68859.0,68849.0,0.5076273]
[1771191026555,0.000203,68859.0,68850.0,0.11952455]
[1771191030279,0.000603,68859.0,68850.0,0.11952455]
[1771191030909,0.09393427,68866.0,68850.0,0.11952455]
[1771191032148,0.09393427,68866.0,68845.0,0.34816]
[1771191032149,0.12149179,68865.0,68845.0,0.34816]
[1771191032363,0.09353427,68864.0,68845.0,0.34816]
[1771191032571,0.12189179,68866.0,68845.0,0.34816]
[1771191032572,0.09353427,68862.0,68845.0,0.34816]
[1771191033215,0.09353427,68862.0,68845.0,0.46768455]
[1771191033436,0.09353427,68862.0,68846.0,0.11952455]
[1771191033638,0.09353427,68862.0,68850.0,0.62715185]
[1771191034050,0.09353427,68862.0,68850.0,0.62638758]
[1771191034476,0.09353427,68862.0,68850.0,0.62670858]
[1771191034687,0.09353427,68862.0,68851.0,0.11952455]
[1771191035895,0.0004,68866.0,68853.0,0.11952455]
[1771191036119,0.0004,68866.0,68852.0,0.85498303]
[1771191036120,0.0004,68866.0,68857.0,0.11952455]
[1771191037863,0.0004,68862.0,68857.0,0.11952455]
[1771191038394,0.02391687,68868.0,68857.0,0.11952455]
[1771191039328,0.02391687,68868.0,68858.0,0.50686303]
[1771191039473,0.02391687,68868.0,68859.0,0.34812]
[1771191039876,0.02391687,68868.0,68859.0,0.46764455]
[1771191040757,0.0240454,68868.0,68859.0,0.46764455]
[1771191041351,0.0240454,68868.0,68860.0,0.11952455]
[1771191042828,0.0240454,68868.0,68859.0,0.34812]
[1771191043441,0.00012853,68868.0,68860.0,0.11952455]
[1771191046484,0.02338357,68877.0,68860.0,0.11952455]
[1771191046691,0.02381185,68877.0,68860.0,0.11952455]
[1771191047474,0.0004,68868.0,68860.0,0.11952455]
[1771191047684,0.0004,68868.0,68860.0,0.11923266]
[1771191048304,0.0004,68868.0,68860.0,0.10478305]
[1771191052299,0.0004,68868.0,68860.0,0.10510405]
[1771191055774,0.0004,68868.0,68860.0,0.10530405]
[1771191062878,0.00042828,68877.0,68860.0,0.10530405]
[1771191063082,0.00042828,68877.0,68868.0,0.12037035]
[1771191063296,0.00042828,68877.0,68870.0,0.12037035]
[1771191064298,0.0004,68875.0,68870.0,0.12037035]
[1771191064618,0.00042828,68877.0,68870.0,0.12037035]
[1771191064821,0.02338357,68880.0,68870.0,0.50686303]
[1771191064822,0.01902465,68880.0,68870.0,0.50686303]
[1771191065031,0.01361112,68879.0,68871.0,0.12037035]
[1771191065236,0.01902465,68880.0,68871.0,0.12037035]
[1771191065435,0.01361509,68879.0,68871.0,0.12037035]
[1771191065609,0.01902465,68880.0,68871.0,0.12037035]
[1771191066740,0.14613188,68889.0,68879.0,0.50686303]
[1771191066741,0.02320833,68888.0,68879.0,0.50686303]
[1771191067042,0.03682139,68887.0,68871.0,0.14412254]
[1771191067266,0.01361306,68886.0,68871.0,0.14412254]
[1771191067795,0.03682139,68886.0,68871.0,0.14412254]
[1771191067994,0.02320833,68886.0,68871.0,0.14412254]
[1771191069001,0.09054851,68895.0,68870.0,0.50729131]
[1771191069002,0.11882682,68904.0,68883.0,0.02375219]
[1771191069131,0.11882682,68904.0,68891.0,0.12037035]
[1771191069132,0.01360513,68903.0,68891.0,0.12037035]
[1771191069338,0.0027283,68904.0,68895.0,0.12037035]
[1771191069754,0.0027283,68904.0,68883.0,0.14868523]
[1771191069755,0.02320833,68902.0,68879.0,0.12037035]
[1771191069954,0.02320833,68901.0,68885.0,0.34804]
[1771191070186,0.324,68912.0,68885.0,0.34804]
[1771191070187,0.0002373,68917.0,68885.0,0.34804]
[1771191070436,0.11882867,68916.0,68895.0,0.12037035]
[1771191070643,0.02320833,68909.0,68890.0,0.62723338]
[1771191070882,0.02320833,68907.0,68893.0,0.25324]
[1771191072152,0.50686303,68910.0,68893.0,0.25324]
[1771191072357,0.0004,68900.0,68888.0,0.12037035]
[1771191072564,0.0004,68900.0,68890.0,0.50686303]
[1771191072765,0.0004,68900.0,68891.0,0.14412254]
[1771191073161,0.02320833,68899.0,68887.0,0.29232]
[1771191074439,0.02320833,68899.0,68885.0,0.00012843]
[1771191075458,0.02333424,68896.0,68885.0,0.00012843]
[1771191078580,0.50726303,68900.0,68885.0,0.12054932]
[1771191078581,0.0004,68900.0,68885.0,0.12054932]
[1771191078817,0.50726303,68900.0,68885.0,0.12054932]
[1771191078993,0.53059727,68900.0,68885.0,0.12054932]
[1771191079193,0.02373424,68900.0,68890.0,0.50686303]
[1771191079398,0.02373424,68900.0,68890.0,0.62728392]
[1771191079816,0.02373424,68900.0,68890.0,0.12042089]
[1771191080829,0.02373424,68900.0,68890.0,0.12074189]
[1771191082721,0.0004,68900.0,68890.0,0.12074189]
[1771191083336,0.0004,68900.0,68891.0,0.12042089]
[1771191084758,0.0004,68900.0,68891.0,0.14411959]
[1771191087238,0.02333424,68906.0,68891.0,0.12042089]
[1771191087468,0.02333424,68906.0,68891.0,0.14411959]
[1771191088123,0.02333424,68906.0,68891.0,0.12042089]
[1771191088124,0.0004,68900.0,68891.0,0.12042089]
[1771191088325,0.0004,68900.0,68893.0,0.12042089]
[1771191088597,0.27884,68915.0,68894.0,0.12042089]
[1771191088598,0.0004,68907.0,68894.0,0.12042089]
[1771191088828,0.0004,68907.0,68897.0,0.0236987]
[1771191089042,0.0004,68907.0,68898.0,0.12042089]
[1771191090128,0.0004,68907.0,68898.0,0.1095825]
[1771191091180,0.0004,68907.0,68895.0,0.000321]
[1771191091387,0.0004,68907.0,68887.0,0.44092]
[1771191091388,0.02333424,68903.0,68887.0,0.44092]
[1771191091558,0.02333424,68899.0,68887.0,0.44092]
[1771191092166,0.0004,68907.0,68890.0,0.12042089]
[1771191092366,0.0004,68907.0,68893.0,0.0236987]
[1771191092590,0.0004,68907.0,68895.0,0.0236987]
[1771191092938,0.0004,68907.0,68896.0,0.12042089]
[1771191093602,0.0004,68907.0,68896.0,0.14411959]
[1771191094459,0.0004,68907.0,68896.0,0.12042089]
[1771191094689,0.0004,68907.0,68898.0,0.14411959]
[1771191095076,0.02333424,68914.0,68891.0,0.0236987]
[1771191095278,0.01357508,68913.0,68901.0,0.12042089]
[1771191095427,0.02333424,68916.0,68901.0,0.12042089]
[1771191095632,0.02333424,68914.0,68901.0,0.12042089]
[1771191095862,0.03691414,68913.0,68901.0,0.12042089]
[1771191096114,0.02333424,68913.0,68901.0,0.12042089]
[1771191098236,0.0002373,68917.0,68887.0,0.44092]
[1771191098237,0.0002373,68917.0,68900.0,0.50617646]
[1771191098440,0.03692727,68916.0,68901.0,0.14411959]
[1771191098658,0.01359303,68915.0,68902.0,0.0236987]
[1771191098861,0.01359303,68914.0,68903.0,0.14411959]
[1771191099059,0.02333424,68916.0,68903.0,0.14411959]
[1771191099310,0.11609852,68934.0,68906.0,0.50617646]
[1771191099511,0.17397276,68938.0,68911.0,0.12042089]
[1771191099512,0.02333424,68938.0,68911.0,0.12042089]
[1771191099735,0.02333424,68938.0,68921.0,0.12042089]
[1771191099935,0.0001023,68939.0,68925.0,0.12042089]
[1771191100143,0.0001023,68939.0,68927.0,0.12042089]
[1771191100363,0.0001023,68939.0,68928.0,0.01342268]
[1771191100592,0.00023073,68939.0,68929.0,0.01342268]
[1771191100807,0.00023073,68939.0,68930.0,0.01342268]
[1771191101047,0.00023073,68939.0,68931.0,0.01342268]
[1771191101261,0.00023073,68939.0,68932.0,0.01342268]
[1771191101501,0.00023073,68939.0,68933.0,0.01342268]
[1771191101720,0.00023073,68939.0,68934.0,0.01342268]
[1771191101938,0.02333424,68938.0,68915.0,0.0236987]
[1771191102208,0.02333424,68938.0,68907.0,0.0001337]
[1771191102209,0.02333424,68938.0,68916.0,0.3366587]
[1771191102428,0.00023073,68939.0,68916.0,0.3366587]
[1771191102429,0.02333424,68928.0,68916.0,0.31296]
[1771191102638,0.02333424,68928.0,68910.0,0.50617646]
[1771191102861,0.02333424,68928.0,68911.0,0.12042089]
[1771191103114,0.02333424,68928.0,68915.0,0.12042089]
[1771191103547,0.02333424,68928.0,68909.0,0.3424]
[1771191103764,0.00023073,68939.0,68909.0,0.3424]
[1771191103765,0.00023073,68939.0,68910.0,0.14443257]
[1771191103971,0.00023073,68939.0,68909.0,0.3424]
[1771191103972,0.00023073,68939.0,68930.0,0.02395817]
[1771191104206,0.00023073,68939.0,68930.0,0.37179817]
[1771191105485,0.00023073,68939.0,68930.0,0.34784]
[1771191107438,0.00023073,68939.0,68920.0,0.52972636]
[1771191107562,0.02364818,68939.0,68926.0,0.09296]
[1771191108744,0.02364818,68939.0,68926.0,0.1165099]
[1771191110020,0.02364818,68939.0,68920.0,0.50617646]
[1771191110230,0.02341745,68935.0,68925.0,0.34776]
[1771191111144,0.00023073,68939.0,68926.0,0.0235499]
[1771191112611,0.00023073,68939.0,68929.0,0.50617646]
[1771191112811,0.00023073,68939.0,68929.0,0.0235499]
[1771191113269,0.00023073,68939.0,68929.0,0.52972636]
[1771191113884,0.00023073,68939.0,68930.0,0.01336235]
[1771191114097,0.00023073,68939.0,68929.0,0.52972636]
[1771191114098,0.00023073,68939.0,68931.0,0.01336235]
[1771191114304,0.00023073,68939.0,68932.0,0.01336235]
[1771191114512,0.00023073,68939.0,68933.0,0.01336235]
[1771191114712,0.00023073,68939.0,68934.0,0.01336235]
[1771191114860,0.02364818,68939.0,68935.0,0.01336235]
[1771191115106,0.02364818,68939.0,68936.0,0.01336235]
[1771191115295,0.12112437,68939.0,68937.0,0.01336235]
[1771191115641,0.02341745,68938.0,68929.0,0.50617646]
[1771191115880,0.02341745,68938.0,68930.0,0.01336471]
[1771191116092,0.02341745,68938.0,68931.0,0.01336471]
[1771191116263,0.02341745,68938.0,68932.0,0.01336471]
[1771191116506,0.02341745,68938.0,68933.0,0.01336471]
[1771191116689,0.00023073,68939.0,68934.0,0.01336471]
[1771191116833,0.00023073,68939.0,68935.0,0.01336471]
[1771191117030,0.00023073,68939.0,68936.0,0.01336471]
[1771191117281,0.00023073,68939.0,68937.0,0.01336471]
[1771191117520,0.00023073,68939.0,68938.0,0.01336471]
[1771191118093,0.00023073,68939.0,68929.0,0.50617646]
[1771191118297,0.00023073,68939.0,68930.0,0.01336901]
[1771191118466,0.00023073,68939.0,68931.0,0.01336901]
[1771191118663,0.00023073,68939.0,68932.0,0.01336901]
[1771191118935,0.0002699,68959.0,68933.0,0.01336901]
[1771191119169,0.0002699,68959.0,68943.0,0.0235499]
[1771191119170,0.00042785,68952.0,68943.0,0.0235499]
[1771191119380,0.00042785,68952.0,68945.0,0.0235499]
[1771191119580,0.0002699,68959.0,68947.0,0.0235499]
[1771191119778,0.0002699,68959.0,68949.0,0.0235499]
[1771191120018,0.0002699,68959.0,68950.0,0.03690976]
[1771191120223,0.0002699,68959.0,68951.0,0.01335986]
[1771191120433,0.0002699,68959.0,68952.0,0.01335986]
[1771191120602,0.0002699,68959.0,68953.0,0.01335986]
[1771191120745,0.0002699,68959.0,68954.0,0.01335986]
[1771191120946,0.0002699,68959.0,68955.0,0.01335986]
[1771191121200,0.0002699,68959.0,68950.0,0.0235499]
[1771191121448,0.0002699,68959.0,68951.0,0.01335981]
[1771191121599,0.0002699,68959.0,68952.0,0.01335981]
[1771191121966,0.0002699,68959.0,68953.0,0.01335981]
[1771191122171,0.0002699,68959.0,68954.0,0.01335981]
[1771191122381,0.0002699,68959.0,68950.0,0.0235499]
[1771191122382,0.02368735,68959.0,68949.0,0.50617646]
[1771191122587,0.12116354,68959.0,68949.0,0.50617646]
[1771191123325,0.0002699,68959.0,68949.0,0.50617646]
[1771191123536,0.0002699,68959.0,68950.0,0.0235499]
[1771191124828,0.0002699,68959.0,68949.0,0.50617646]
[1771191125256,0.0002699,68959.0,68950.0,0.0235499]
[1771191125849,0.0002699,68959.0,68952.0,0.0235499]
[1771191127749,0.0006699,68959.0,68952.0,0.0235499]
[1771191129745,0.02365345,68965.0,68952.0,0.0235499]
[1771191129746,0.000236,68965.0,68952.0,0.11305628]
[1771191129950,0.000236,68965.0,68949.0,1.01235292]
[1771191129951,0.00036428,68965.0,68956.0,0.0235499]
[1771191130151,0.00036428,68965.0,68958.0,0.0235499]
[1771191132930,0.00036428,68965.0,68957.0,0.34764]
[1771191134110,0.14431109,68972.0,68957.0,0.34764]
[1771191134444,0.14431109,68972.0,68960.0,0.50617646]
[1771191134594,0.14431109,68972.0,68961.0,0.01338001]
[1771191134791,0.14431109,68972.0,68962.0,0.01338001]
[1771191134995,0.14431109,68972.0,68963.0,0.01338001]
[1771191135199,0.14431109,68972.0,68964.0,0.01338001]
[1771191135409,0.14431109,68972.0,68960.0,0.50617646]
[1771191135410,0.02493563,68978.0,68965.0,0.01338001]
[1771191135621,0.02493563,68978.0,68966.0,0.01338001]
[1771191135834,0.02493563,68978.0,68960.0,0.50617646]
[1771191135835,0.0004,68965.0,68960.0,0.50617646]
[1771191136036,0.0004,68965.0,68957.0,0.34776828]
[1771191137127,0.0004,68965.0,68957.0,0.37104186]
[1771191137325,0.0004,68965.0,68957.0,0.34776828]
[1771191137532,0.0002488,68976.0,68959.0,0.02327358]
[1771191137726,0.0002488,68976.0,68958.0,0.12076213]
[1771191137727,0.0002488,68976.0,68961.0,0.02327358]
[1771191138261,0.02494843,68976.0,68961.0,0.02327358]
[1771191139278,0.11786477,68975.0,68957.0,0.00012828]
[1771191139480,0.11786477,68968.0,68957.0,0.00012828]
[1771191139685,0.02469963,68967.0,68958.0,0.50617646]
[1771191139909,0.0002488,68976.0,68958.0,0.50617646]
[1771191139910,0.0002488,68976.0,68959.0,0.02327358]
[1771191140304,0.0002488,68976.0,68961.0,0.02327358]
[1771191140506,0.02469963,68975.0,68961.0,0.02327358]
[1771191141113,0.02469963,68973.0,68957.0,0.00012828]
[1771191141311,0.11786477,68970.0,68957.0,0.00012828]
[1771191141529,0.02469963,68967.0,68957.0,0.00012828]
[1771191141740,0.0002488,68976.0,68944.0,0.02327358]
[1771191141741,0.11786477,68964.0,68944.0,0.02327358]
[1771191141955,0.11786477,68960.0,68950.0,0.50617646]
[1771191142187,0.11786477,68960.0,68940.0,0.52945004]
[1771191142188,0.11786477,68956.0,68943.0,0.34756]
[1771191142412,0.09288,68969.0,68943.0,0.34756]
[1771191142413,0.03575508,68983.0,68946.0,1.01235292]
[1771191142621,0.03575508,68983.0,68966.0,0.50617646]
[1771191142622,0.02469963,68979.0,68966.0,0.50617646]
[1771191142836,0.02469963,68979.0,68964.0,0.34756]
[1771191143049,0.11786477,68983.0,68950.0,0.50617646]
[1771191143050,0.50617646,68980.0,68950.0,0.50617646]
[1771191143253,0.11786477,68972.0,68951.0,0.34756]
[1771191143484,0.02469963,68969.0,68960.0,0.50617646]
[1771191144965,0.02469963,68969.0,68952.0,0.12076213]
[1771191145177,0.02469963,68969.0,68959.0,0.50617646]
[1771191145619,0.0004,68975.0,68959.0,0.52945004]
[1771191146042,0.02469963,68974.0,68960.0,0.50617646]
[1771191147426,0.11826477,68975.0,68964.0,0.62693859]
[1771191147427,0.0004,68975.0,68964.0,0.62693859]
[1771191147630,0.0004,68975.0,68960.0,0.50617646]
[1771191147631,0.02469963,68996.0,68967.0,0.12076213]
[1771191147830,0.11786477,68996.0,68980.0,0.50617646]
[1771191148033,0.02469963,68993.0,68980.0,0.50617646]
[1771191148520,0.00066629,69000.0,68981.0,0.12076213]
[1771191148722,0.00066629,69000.0,68982.0,0.02327358]
[1771191148929,0.00040646,68991.0,68982.0,0.02327358]
[1771191149082,0.00040646,68991.0,68978.0,0.34756]
[1771191149288,0.00040646,68991.0,68981.0,0.14403571]
[1771191149705,0.00040646,68991.0,68981.0,0.02327358]
[1771191150099,0.02469963,68990.0,68978.0,0.34756]
[1771191150536,0.00040646,68991.0,68978.0,0.34756]
[1771191151007,0.00040646,68991.0,68950.0,0.12076213]
[1771191151008,0.56810275,68990.0,68950.0,0.12076213]
[1771191151206,0.00040646,68991.0,68972.0,0.12076213]
[1771191151435,0.00040646,68991.0,68974.0,0.02327358]
[1771191151611,0.00040646,68991.0,68976.0,0.12076213]
[1771191151809,0.00040646,68991.0,68977.0,0.02327358]
[1771191153054,0.00080646,68991.0,68977.0,0.02327358]
[1771191153839,0.00080646,68991.0,68969.0,0.09288]
[1771191154060,0.02469963,68987.0,68969.0,0.4404]
[1771191154284,0.02469963,68990.0,68971.0,0.14403571]
[1771191154504,0.02469963,68990.0,68943.0,0.35821249]
[1771191154505,0.11786477,68989.0,68964.0,0.12076213]
[1771191154719,0.56810275,68990.0,68960.0,0.26704]
[1771191154720,0.02469963,68977.0,68960.0,0.26704]
[1771191154916,0.02469963,68976.0,68960.0,0.26704]
[1771191155338,0.56810275,68990.0,68962.0,0.12076213]
[1771191155339,0.02469963,68981.0,68962.0,0.12076213]
[1771191155556,0.02469963,68981.0,68964.0,0.02327358]
[1771191156001,0.02469963,68981.0,68960.0,0.26704]
[1771191156002,0.02550609,68991.0,68965.0,0.12076213]
[1771191156203,0.02469963,68990.0,68968.0,0.02327358]
[1771191156404,0.02469963,68989.0,68969.0,0.02327358]
[1771191156608,0.02469963,68989.0,68971.0,0.02327358]
[1771191156810,0.02469963,68989.0,68973.0,0.02327358]
[1771191157237,0.00080646,68991.0,68960.0,0.26704]
[1771191157238,0.02469963,68987.0,68960.0,0.26704]
[1771191157471,0.11786477,68984.0,68960.0,0.26704]
[1771191157632,0.02469963,68981.0,68961.0,0.12096213]
[1771191157968,0.02469963,68981.0,68962.0,0.02327358]
[1771191158138,0.02469963,68979.0,68962.0,0.02327358]
[1771191158357,0.11786477,68978.0,68961.0,0.0002]
[1771191158558,0.29069946,68991.0,68961.0,0.0002]
[1771191158559,0.02469963,68976.0,68961.0,0.0002]
[1771191158759,0.02469963,68976.0,68952.0,0.09288]
[1771191158760,0.02469963,68979.0,68948.0,0.02327358]
[1771191159080,0.56832451,68980.0,68948.0,0.02327358]
[1771191159081,0.11786477,68971.0,68948.0,0.02327358]
[1771191159324,0.11786477,68969.0,68948.0,0.02327358]
[1771191159458,0.02469963,68967.0,68948.0,0.02327358]
[1771191159667,0.11786477,68967.0,68948.0,0.02327358]
[1771191159866,0.02469963,68964.0,68948.0,0.02327358]
[1771191160070,0.56832451,68970.0,68942.0,0.02327358]
[1771191160071,0.11786477,68961.0,68942.0,0.02327358]
[1771191160275,0.02469963,68959.0,68942.0,0.02327358]
[1771191160483,0.02469963,68959.0,68949.0,0.00032821]
[1771191161558,0.02469963,68974.0,68949.0,0.56865272]
[1771191161710,0.0004,68975.0,68951.0,0.02327358]
[1771191161711,0.02469963,68970.0,68951.0,0.02327358]
[1771191161918,0.02469963,68969.0,68951.0,0.12076213]
[1771191162116,0.02469963,68969.0,68952.0,0.02327358]
[1771191163041,0.0004,68975.0,68949.0,0.00032821]
[1771191163042,0.0004,68975.0,68954.0,0.02327358]
[1771191163241,0.0004,68975.0,68950.0,0.56832451]
[1771191163242,0.02469963,68974.0,68958.0,0.02327358]
[1771191163444,0.0004,68975.0,68958.0,0.02327358]
[1771191163644,0.0004,68975.0,68961.0,0.11785637]
[1771191163848,0.0004,68975.0,68949.0,0.00032821]
[1771191163849,0.09288,68988.0,68965.0,0.56832451]
[1771191164024,0.09288,68988.0,68949.0,0.00032821]
[1771191164025,0.02322061,68991.0,68971.0,0.02353569]
[1771191164228,0.11636735,68987.0,68964.0,0.21936]
[1771191164437,0.56832451,68990.0,68964.0,0.21936]
[1771191164438,0.02428208,68984.0,68964.0,0.21936]
[1771191164639,0.02428208,68982.0,68964.0,0.21936]
[1771191165032,0.02428208,68981.0,68964.0,0.21936]
[1771191165389,0.02428208,68979.0,68964.0,0.21936]
[1771191165597,0.02428208,68979.0,68964.0,0.21978785]
[1771191165808,0.02428208,68979.0,68966.0,0.02286919]
[1771191166007,0.02428208,68986.0,68969.0,0.11874138]
[1771191166239,0.02428208,68986.0,68970.0,0.11874138]
[1771191166374,0.02428208,68986.0,68971.0,0.02286919]
[1771191166740,0.0002782,68991.0,68964.0,0.21978785]
[1771191166741,0.0002782,68991.0,68972.0,0.11874138]
[1771191166947,0.0002782,68991.0,68974.0,0.14161057]
[1771191167138,0.02456028,68991.0,68975.0,0.02286919]
[1771191167339,0.02456028,68991.0,68977.0,0.02286919]
[1771191167340,0.0002782,68991.0,68977.0,0.02286919]
[1771191167732,0.0002782,68991.0,68977.0,0.11874138]
[1771191167907,0.0002782,68991.0,68978.0,0.02286919]
[1771191169311,0.00066629,69000.0,68964.0,0.21978785]
[1771191169312,0.10506885,69027.0,68972.0,0.14161057]
[1771191169530,0.1199934,69021.0,69010.0,0.56832451]
[1771191169738,0.1199934,69021.0,69002.0,0.02286919]
[1771191169739,0.1199934,69021.0,69004.0,0.12816]
[1771191169964,0.02428208,69020.0,69004.0,0.12816]
[1771191170311,0.02428208,69020.0,68974.0,0.07249048]
[1771191170312,0.1199934,69017.0,68989.0,0.34752]
[1771191170523,0.1199934,69013.0,68990.0,0.34752]
[1771191170758,0.56832451,69020.0,68990.0,0.34752]
[1771191170759,0.1199934,69011.0,68990.0,0.34794785]
[1771191170972,0.1199934,69011.0,68992.0,0.11874138]
[1771191171201,0.1199934,69011.0,68992.0,0.14161057]
[1771191171413,0.0004,68998.0,68992.0,0.14161057]
[1771191171857,0.0004,68998.0,68992.0,0.02286919]
[1771191172067,0.0004,68998.0,68990.0,0.34794785]
[1771191172068,0.0004,68998.0,68990.0,0.00042785]
[1771191172649,0.0004,68998.0,68956.0,0.0002]
[1771191172650,0.02428208,68997.0,68974.0,0.11874138]
[1771191172860,0.0004,68998.0,68969.0,0.11874138]
[1771191172861,0.02428208,68993.0,68969.0,0.11874138]
[1771191173071,0.02428208,68987.0,68969.0,0.00038848]
[1771191173273,0.56832451,68990.0,68966.0,0.11874138]
[1771191173274,0.02428208,68985.0,68966.0,0.1183857]
[1771191173474,0.14427548,68985.0,68966.0,0.11881455]
[1771191174058,0.14427548,68985.0,68956.0,0.0002]
[1771191174059,0.1199934,68978.0,68957.0,0.02286919]
[1771191174233,0.27196,68990.0,68957.0,0.02329925]
[1771191174234,0.14427548,68976.0,68957.0,0.02329925]
[1771191174862,0.56832451,68980.0,68957.0,0.02329925]
[1771191174863,0.1199934,68974.0,68957.0,0.00043006]
[1771191175068,0.1199934,68972.0,68957.0,0.00043006]
[1771191175894,0.02428208,68971.0,68957.0,0.00043006]